Cogmind - Beta 13 @@@ ROGUE MODE // 2024.06.29 @ 17:02:04 Player: buwwet Result: Destroyed by Y-45 Defender with Beam Rifle Performance ------------- Evolutions (2) 1000 Regions Visited (5) 1000 Robots Destroyed (77) 385 Value Destroyed (2297) 2297 Prototype IDs (0) 0 Alien Tech Used (0) 0 Bonus (2) 2 TOTAL SCORE: 4684 Bonus ------- High Alert Combat Kills 2 Cogmind --------- Core Integrity 0/550 Matter 300/300 Energy 160/160 System Corruption 2% Temperature Cool (9) Movement Flying (595) Ox7 Location -8/Materials Parts ------- > --- POWER (2) -------- Light Nuclear Core > --- PROPULSION (3) --- Cesium-ion Thruster > --- UTILITY (4) ------ Large Storage Unit Sensor Array Improved Signal Interpreter > --- WEAPON (2) ------- Heavy Assault Cannon > --- INVENTORY (15) --- Light Treads Visual Processing Unit Improved Targeting Computer Hacking Suite System Shield Pulse Rifle Pulse Rifle Flak Gun Grenade Launcher Peak State ------------ > --- POWER ------------ Light Nuclear Core Light Nuclear Core > --- PROPULSION ------- Cesium-ion Thruster Cesium-ion Thruster Cesium-ion Thruster > --- UTILITY ---------- Improved Heat Sink Large Storage Unit Sensor Array Improved Signal Interpreter > --- WEAPON ----------- Flak Gun Flak Gun > --- INVENTORY -------- Cesium-ion Thruster Visual Processing Unit Improved Targeting Computer Hacking Suite System Shield Pulse Rifle Pulse Rifle Grenade Launcher [Rating: 33] Favorites ----------- Power Ion Engine Engine Ion Engine Power Core Light Nuclear Core Propulsion Light Treads Treads Light Treads Leg Titanium Leg Flight Unit Cesium-ion Thruster Utility Large Storage Unit Device Improved Heat Sink Storage Large Storage Unit Processor Improved Signal Interpreter Protection Light Armor Plating Weapon Particle Gun Energy Gun Particle Gun Energy Cannon Particle Cannon Ballistic Gun Assault Rifle Ballistic Cannon Heavy Assault Cannon Impact Weapon Heavy Hammer Build | -11 -10 -10 -9 -9 -8 ------- Run | Yrd Mat Min Mat Min Mat Slots Evolved 4 | . . . 2 . 2 Power 1 | . . . . . 1 Propulsion 1 | . . . . . 1 Utility 2 | . . . 2 . . Weapon . | . . . . . . Parts Attached 81 | 7 10 6 18 5 35 Power 15 | 1 1 3 5 1 4 Engine 10 | 1 1 2 3 1 2 Core 5 | . . 1 2 . 2 Reactor . | . . . . . . Propulsion 22 | 2 2 . 5 1 12 Treads 17 | 2 2 . 5 1 7 Leg 1 | . . . . . 1 Wheel . | . . . . . . Hover . | . . . . . . Flight 4 | . . . . . 4 Utility 18 | 1 3 1 6 . 7 Device 6 | . 1 1 1 . 3 Storage 3 | 1 2 . . . . Processor 1 | . . . . . 1 Hackware . | . . . . . . Protection 8 | . . . 5 . 3 Artifact . | . . . . . . Weapon 26 | 3 4 2 2 3 12 Energy Gun 11 | 1 3 2 . 1 4 Energy Cannon 5 | . . . 2 1 2 Ballistic Gun 5 | 2 1 . . . 2 Ballistic Cannon 1 | . . . . . 1 Launcher . | . . . . . . Special Weapon . | . . . . . . Impact Weapon 4 | . . . . 1 3 Slashing Weapon . | . . . . . . Piercing Weapon . | . . . . . . Special Melee Weapon . | . . . . . . Unidentified Prototypes . | . . . . . . Parts Lost 29 | . 1 3 4 2 19 Power 8 | . . 2 2 . 4 Propulsion 8 | . . . 1 . 7 Utility 6 | . . . . 2 4 Weapon 7 | . 1 1 1 . 4 Highest Loss Streak 8 | . 1 1 1 1 8 To Critical Strikes . | . . . . . . Average Slot Usage (%) 95 | . 98 99 97 92 86 Engine 10 | . 14 13 5 11 13 Core 2 | . . . 5 . 1 Treads 23 | . 28 28 21 22 19 Device 15 | . 12 14 19 16 14 Storage 11 | . 14 14 11 11 9 Protection 6 | . . . 11 9 5 Energy Gun 14 | . 17 27 13 4 9 Energy Cannon 5 | . . . 8 15 3 Ballistic Gun 2 | . 10 . . . 1 Naked Turns . | . . . . . . Heaviest Build 44 | 14 31 32 42 42 44 Greatest Support 63 | 40 40 40 40 40 63 Greatest Overweight (x) 7 | . . . 1 1 7 Average Overweight (x) . | . . . . . . Largest Inventory Capacity 15 | 8 15 15 15 15 15 Average Capacity 14 | 6 14 15 15 15 15 Most Carried 15 | 4 15 15 15 15 15 Average Carried 13 | 2 10 14 14 14 14 Final Capacity 15 | 8 15 15 15 15 15 Final Carried 15 | 4 15 15 15 15 9 Class Distribution -------------------- 66% | Scavenger-Mutant 33% | Mutant Dominant Class ---------------- Mutant | -10/Materials Scavenger-Mutant | -10/Mines Scavenger-Mutant | -9/Materials Scavenger-Mutant | -9/Mines Mutant | -8/Materials Resources | -11 -10 -10 -9 -9 -8 ----------- Run | Yrd Mat Min Mat Min Mat Matter Collected 1188 | 173 307 99 170 45 394 Remotely . | . . . . . . Salvage Created 2574 | . 527 249 746 234 818 Parts 146 | . 31 12 48 10 45 Haulers Intercepted 2 | . 2 . . . . Recyclers Shooed 1 | . . . . . 1 Parts Field Recycled . | . . . . . . Retrieved Matter . | . . . . . . Parts Self-Destructed . | . . . . . . Prevented . | . . . . . . Kills | -11 -10 -10 -9 -9 -8 ------- Run | Yrd Mat Min Mat Min Mat Combat Hostiles Destroyed 67 | . 8 8 20 8 23 Melee 2 | . . . . 1 1 Guns 41 | . 8 8 10 2 13 Cannons 21 | . . . 10 5 6 AOE 1 | . . . . . 1 Classes Destroyed 11 | . 4 1 3 1 2 Worker 1 | . . . 1 . . Hauler 2 | . 2 . . . . Recycler 1 | . . . . . 1 Operator 1 | . 1 . . . . Watcher 6 | . 3 . 3 . . Swarmer 20 | . . 3 7 3 7 Grunt 31 | . 8 5 5 4 9 Brawler 1 | . . . 1 . . Duelist 1 | . . . . . 1 Sentry 13 | . . . 7 . 6 Assembled 1 | . . . . 1 . Best Kill Streak 6 | . 3 3 5 4 6 Combat Bots Only 5 | . 3 3 4 4 5 Max Kills in Single Turn 2 | . 1 1 2 1 1 Gunslinging . | . . . . . . Exploded 1 | . . . . . 1 Melee 1 | . . . . 1 1 Uniques/NPCs Destroyed . | . . . . . . Combat | -11 -10 -10 -9 -9 -8 -------- Run | Yrd Mat Min Mat Min Mat Hostile Shots Fired 469 | . 56 42 98 25 248 Missed 125 | . 16 4 21 8 76 Damage Taken 4790 | . 525 489 862 164 2750 Core 828 | . 48 76 144 8 552 Absorbed by Shields . | . . . . . . Redirected to Shielding 102 | . . . 10 . 92 Core Remaining (%) 70 | 100 . 50 . 62 . Volleys Fired 202 | . 44 24 60 14 60 Largest 2 | . 2 2 2 2 2 Hottest 130 | . 115 130 130 128 124 Shots Fired 389 | . 88 46 119 24 112 Gun 293 | . 88 46 72 6 81 Cannon 96 | . . . 47 18 31 Launcher . | . . . . . . Special . | . . . . . . Kinetic 72 | . 53 . . . 19 Thermal 311 | . 29 46 119 24 93 Explosive . | . . . . . . Electromagnetic 6 | . 6 . . . . Robot Hit Streak 17 | . 11 15 17 5 11 Robot Miss Streak 6 | . 4 6 3 2 6 Penetration Max . | . . . . . . Secondary Targets 2 | . . 1 . . 1 Max Gunslinging Chain 1 | . . 1 . . 1 Shots Hit Robots 274 | . 59 34 78 17 86 Core Hits 139 | . 27 15 30 7 60 Critical Kills . | . . . . . . Critical Parts Destroyed 1 | . . . . . 1 Critical Strikes 19 | . 1 3 6 1 8 Burn 17 | . 1 3 6 1 6 Blast 1 | . . . . . 1 Smash 1 | . . . . . 1 Melee Attacks 26 | . . . . 14 12 Impact 26 | . . . . 14 12 Slashing . | . . . . . . Piercing . | . . . . . . Sneak Attacks . | . . . . . . Combat Hostiles . | . . . . . . Follow-up Attacks . | . . . . . . Damage Inflicted 5008 | . 721 494 1505 413 1875 Guns 3032 | . 721 494 792 74 951 Cannons 1370 | . . . 701 235 434 Explosions 187 | . . . . . 187 Melee 378 | . . . . 104 274 Ramming 41 | . . . 12 . 29 Kinetic 709 | . 421 . . . 288 Thermal 3838 | . 258 494 1493 309 1284 Explosive . | . . . . . . Electromagnetic 42 | . 42 . . . . Impact 378 | . . . . 104 274 Slashing . | . . . . . . Piercing . | . . . . . . Highest Corruption 2 | . . . 1 1 2 Average Corruption 1 | . . . 1 1 2 Corruption Purged . | . . . . . . Corruption Blocked . | . . . . . . Effects 16 | . . . 5 5 6 Message Errors 3 | . . . 1 2 . Matter Fused 2 | . . . . . 2 Heat Flow Errors 3 | . . . 2 . 1 Energy Discharges 2 | . . . 1 1 . Data Loss (minor) 4 | . . . 1 2 1 Data Loss (major) 1 | . . . . . 1 Misfires 1 | . . . . . 1 Overload Shots . | . . . . . . Overflow Damage 195 | . . . 3 69 123 Projectiles 9 | . . . 3 6 . Explosions 83 | . . . . . 83 Melee 103 | . . . . 63 40 Knockbacks 3 | . . . . . 3 Impact 2 | . . . . . 2 Kinetic 1 | . . . . . 1 Secondary . | . . . . . . Self-Inflicted Damage 135 | . . . . . 135 Shots 2 | . . . . . 2 Rammed 9 | . . . 2 . 7 Targets Rammed 10 | . . . 2 . 8 Kicked . | . . . . . . Crushed 1 | . . . . . 1 Highest Temperature 354 | . 105 129 221 108 354 Average Temperature 67 | . 32 45 50 38 106 Received Heat Transfer 2102 | . 330 255 294 116 1107 Effects 2 | . . . . . 2 Shutdowns 1 | . . . . . 1 Energy Bleed 1 | . . . . . 1 Siege Activations . | . . . . . . Robots Corrupted . | . . . . . . Combat Hostiles . | . . . . . . Parts Fried 3 | . . . . . 3 Impact Corruptions 4 | . . . . 1 3 Robots Melted . | . . . . . . Combat Hostiles . | . . . . . . Parts Melted 14 | . . 1 8 2 3 Heat Transferred 9214 | . 719 1517 3478 666 2834 Parts Sabotaged . | . . . . . . Parts Stolen . | . . . . . . Parts Stripped . | . . . . . . Power Chain Reactions . | . . . . . . Alert | -11 -10 -10 -9 -9 -8 ------- Run | Yrd Mat Min Mat Min Mat Peak Influence 412 | . 241 143 278 182 412 Initial 73 | . . 3 . 73 27 Average 108 | . 112 59 72 90 226 Maximum Alert Level 2 | . 1 . 1 . 2 Low Security (%) 80 | 100 86 100 91 100 30 Level 1 18 | . 13 . 8 . 68 Level 2 . | . . . . . 1 Level 3 . | . . . . . . Level 4 . | . . . . . . Level 5 . | . . . . . . High Security . | . . . . . . Max Security . | . . . . . . Squads Dispatched 12 | . 2 . . . 10 Investigation 4 | . 1 . . . 3 Extermination . | . . . . . . Reinforcement 5 | . 1 . . . 4 Assault . | . . . . . . Garrison 3 | . . . . . 3 Intercept . | . . . . . . Searches Triggered . | . . . . . . Construction Impeded 1 | . . . . . 1 Haulers Reinforced . | . . . . . . Active Scanning Responses . | . . . . . . Cargo Convoy Interrupts . | . . . . . . Stealth | -11 -10 -10 -9 -9 -8 --------- Run | Yrd Mat Min Mat Min Mat Distress Signals 6 | . 1 1 1 . 3 Communications Jammed . | . . . . . . Distress Signals . | . . . . . . Times Spotted 109 | . 13 20 26 10 40 Peak Tracking Total 23 | . 3 23 5 4 8 Tactical Retreats 8 | . . 4 . 1 3 Traps | -11 -10 -10 -9 -9 -8 ------- Run | Yrd Mat Min Mat Min Mat Traps Triggered 5 | . 1 . 1 . 3 Indirectly . | . . . . . . Trap Hack Attempts . | . . . . . . Triggered . | . . . . . . Disarmed . | . . . . . . Reprogrammed . | . . . . . . Reused . | . . . . . . Traps Extracted . | . . . . . . Installed 1 | . . . . 1 . Triggered . | . . . . . . Most Traps Carried 1 | . . . . 1 1 Machines | -11 -10 -10 -9 -9 -8 ---------- Run | Yrd Mat Min Mat Min Mat Machines Disabled 7 | . 2 . 1 . 4 Max in Single Turn 3 | . 1 . 1 . 3 Machines Repaired . | . . . . . . Machines Dismantled . | . . . . . . Machines Sabotaged . | . . . . . . Overloaded Fab Kills . | . . . . . . Hacking | -11 -10 -10 -9 -9 -8 --------- Run | Yrd Mat Min Mat Min Mat Machines Accessed 16 | . 4 . 7 . 5 Terminals 13 | . 4 . 5 . 4 Fabricators . | . . . . . . Repair Stations . | . . . . . . Recycling Units . | . . . . . . Scanalyzers 3 | . . . 2 . 1 Garrison Access . | . . . . . . Total Hacks 42 | . 12 . 20 . 10 Successful 25 | . 4 . 15 . 6 Failed 17 | . 8 . 5 . 4 Catastrophic 5 | . 2 . 2 . 1 Database Lockouts . | . . . . . . Manual 19 | . 9 . 6 . 4 Terminals 29 | . 12 . 10 . 7 Fabricators . | . . . . . . Repair Stations . | . . . . . . Recycling Units . | . . . . . . Scanalyzers 13 | . . . 10 . 3 Garrison Access . | . . . . . . Terminal Hacks 12 | . 4 . 5 . 3 Robot Analysis 1 | . . . . . 1 Branch Access Points 1 | . . . 1 . . Terminal Index 2 | . . . 1 . 1 Scanalyzer Index 1 | . . . 1 . . Unreport Threat 4 | . 2 . 2 . . Recall Investigation 1 | . 1 . . . . Recall Reinforcements 1 | . . . . . 1 Hauler Manifests 1 | . 1 . . . . Fabricator Hacks . | . . . . . . Repair Station Hacks . | . . . . . . Recycling Unit Hacks . | . . . . . . Scanalyzer 13 | . . . 10 . 3 Insert Component 6 | . . . 5 . 1 Analyze 7 | . . . 5 . 2 Garrison Access Hacks . | . . . . . . Unauthorized Hacks . | . . . . . . Terminals . | . . . . . . Fabricators . | . . . . . . Repair Stations . | . . . . . . Recycling Units . | . . . . . . Scanalyzers . | . . . . . . Garrison Access . | . . . . . . Data Cores Recovered . | . . . . . . Used . | . . . . . . Hacking Detections 14 | . 4 . 6 . 4 Full Trace Events 1 | . . . . . 1 Feedback Events . | . . . . . . Feedback Blocked . | . . . . . . Robot Schematics Acquired . | . . . . . . Robots Built . | . . . . . . Authchips . | . . . . . . Time . | . . . . . . Total Robot Build Rating . | . . . . . . Part Schematics Acquired 5 | . . . 5 . . Parts Built . | . . . . . . Authchips . | . . . . . . Time . | . . . . . . Total Part Build Rating . | . . . . . . Parts Repaired . | . . . . . . Time . | . . . . . . Parts Recycled . | . . . . . . Recycled Matter . | . . . . . . Retrieved Matter . | . . . . . . Retrieved Components . | . . . . . . Parts Scanalyzed 6 | . . . 5 . 1 Part Schematics Acquired 5 | . . . 5 . . Parts Damaged . | . . . . . . Bothacking | -11 -10 -10 -9 -9 -8 ------------ Run | Yrd Mat Min Mat Min Mat Used RIF Installer . | . . . . . . Robots Hacked . | . . . . . . Non-combat . | . . . . . . Combat . | . . . . . . Robot Hacks Applied . | . . . . . . Relay Couplers Released . | . . . . . . Fabnet Peak Effective % . | . . . . . . Robots Rewired . | . . . . . . Allies Hacked . | . . . . . . Hacks Repelled . | . . . . . . Allies | -11 -10 -10 -9 -9 -8 -------- Run | Yrd Mat Min Mat Min Mat Total Allies . | . . . . . . Largest Group . | . . . . . . Highest-Rated Group . | . . . . . . Highest-Rated Ally . | . . . . . . Total Orders . | . . . . . . Ally Attacks . | . . . . . . Total Damage . | . . . . . . Kills . | . . . . . . Allies Corrupted . | . . . . . . Allies Melted . | . . . . . . Intel | -11 -10 -10 -9 -9 -8 ------- Run | Yrd Mat Min Mat Min Mat Robot Analysis Total 1 | . . . . . 1 Derelict Logs Recovered 3 | . . 1 . 2 . Drone Launches . | . . . . . . Drone Recoveries . | . . . . . . Exploration | -11 -10 -10 -9 -9 -8 ------------- Run | Yrd Mat Min Mat Min Mat Turns Passed 4947 | 126 781 815 1562 641 1022 Spaces Moved 2324 | 74 342 439 740 322 407 Core 5 | 5 . . . . . Treads 2287 | 69 342 439 740 322 375 Legs . | . . . . . . Wheels . | . . . . . . Hover . | . . . . . . Flight 32 | . . . . . 32 Fastest Speed 50 | 50 160 160 160 160 160 Average Speed 164 | 152 160 160 168 169 165 Slowest Speed 595 | 160 160 160 240 240 595 Overloaded Moves . | . . . . . . Propulsion Burnouts . | . . . . . . Robots Hopped . | . . . . . . Cave-ins Triggered . | . . . . . . Exploration Rate (%) 55 | 5 59 78 62 80 51 Regions Visited 5 Branch Regions 2 Pre-discovered Areas 1 | . . . . 1 . Known Exits Taken 1 | . . . 1 . . Unknown Exits Taken 4 | 1 1 1 . 1 . Scrap Searched 3 | . . 1 . 2 . Spaces Dug 7 | . . . 1 4 2 Terrain Destroyed 52 | . . . 5 4 43 Melee 5 | . . . . 4 1 Projectile 8 | . . . 5 . 3 AOE 39 | . . . . . 39 Terrain Rammed . | . . . . . . Walls Destroyed . | . . . . . . Machines Disabled . | . . . . . . Actions | -11 -10 -10 -9 -9 -8 --------- Run | Yrd Mat Min Mat Min Mat Total 3008 | 84 489 506 941 370 618 Wait 259 | . 66 33 90 3 67 Move 2319 | 73 341 438 739 321 407 Hop . | . . . . . . Pick Up 55 | 3 17 2 14 6 13 Fast Attach 30 | 7 3 1 5 . 14 Attach 22 | . 1 3 5 . 13 Detach 3 | 1 . 1 . . 1 Swap 29 | . 6 2 8 5 8 Drop 52 | . 11 2 18 6 15 Fire 202 | . 44 24 60 14 60 Melee 26 | . . . . 14 12 Ram 2 | . . . . . 2 Kick . | . . . . . . Crush 8 | . . . 2 . 6 Escape Stasis . | . . . . . . Rewire . | . . . . . . Trap 1 | . . . . 1 . Miscellaneous . | . . . . . . Route ------- -11/Scrapyard -10/Materials (discovered 4 exits: *Mat x3 / [*Min]) -10/Mines (discovered 3 exits: *Mat x2 / Sub) -9/Materials (discovered 4 exits: *Mat x2 / *Min x2) -9/Mines -8/Materials (discovered 1 exit: [*Fac]) History --------- Turn | Location | Event 2 | -11/Scrapyard | Met Revision 17 32 | -11/Scrapyard | Discovered new exit (range 15) 127 | -11/Scrapyard | Entered Materials 317 | -10/Materials | Build established: Mutant 434 | -10/Materials | Discovered new exit (range 7) 528 | -10/Materials | Discovered new exit (range 16) 624 | -10/Materials | Discovered new exit (range 13) 726 | -10/Materials | Discovered new exit (range 12) 843 | -10/Materials | Build established: Scavenger-Mutant 908 | -10/Materials | Entered Mines 919 | -10/Mines | Assembled infested the area 990 | -10/Mines | Identified exit to Subcaves 1123 | -10/Mines | Discovered new exit (range 11) 1399 | -10/Mines | A weapon hastily lodged in a ceiling crevice suddenly fell to the ground 1554 | -10/Mines | Discovered new exit (range 5) 1723 | -10/Mines | Entered Materials 1723 | -9/Materials | Evolved 2 slots: Utility x2 2237 | -9/Materials | Identified exit to Mines 2398 | -9/Materials | Discovered new exit (range 10) 2744 | -9/Materials | Discovered new exit (range 7) 3285 | -9/Materials | Entered Mines 3292 | -9/Mines | Received a Rocket Launcher from a helpful Derelict 3429 | -9/Mines | Learned 2 Materials zone layouts 3507 | -9/Mines | Found a damaged Exp. Sensor Array with a note attached 3569 | -9/Mines | Excavation squad dispatched 3569 | -9/Mines | A large section of the Mines collapsed 3819 | -9/Mines | Excavation squad dispatched 3831 | -9/Mines | Found a hidden stash of uninstalled traps 3902 | -9/Mines | Discovered new exit (range 10) 3926 | -9/Mines | Entered Materials 3926 | -8/Materials | Evolved 2 slots: Power x1, Propulsion x1 4125 | -8/Materials | Garrison activated, responded to threat 4128 | -8/Materials | Build established: Mutant 4455 | -8/Materials | Discovered new exit (range 16) 4641 | -8/Materials | Core integrity fell below 50% 4671 | -8/Materials | Lost 8 parts (1p2n2u3w) 4934 | -8/Materials | Core integrity fell below 20% 4948 | -8/Materials | Destroyed by Y-45 Defender with Beam Rifle Last Messages --------------- 04919_ K-01 Serf collects debris. 04919_ Cesium-ion Thruster destroyed. 04932_ Atomic Centrifuge disabled. 04933_ G-47 Trooper suffers critical hit (Burn). 04933_ Imp. Heat Sink destroyed. 04935_ Slammed into G-47 Trooper. 04937_ Destabilizing: System interference. 04937_ Hvy. Assault Cannon temporarily disabled. 04937_ Sensor Array temporarily disabled. 04939_ K-01 Serf collects debris. 04939_ Critical hit (Burn: +37). 04940_ Penetrated by Slug. 04942_ B-36 Bruiser destroyed. 04943_ Penetrated by Slug. 04944_ ALERT: Suspicious intruders detected, dispatching Cutter reinforcements to area. 04945_ K-01 Serf collects debris. 04945_ Cesium-ion Thruster destroyed. 04945_ Acquired 20 matter. 04947_ K-01 Serf collects debris. Map ----- +----------------------------------------------------+ | | | | | | | | | | | ?????????????????????????????????????????????????? | | ?????????????????????????????????????????????????? | | ?????????????????????????????????????????????????? | | ?????????????????????????????????????????????????? | | ?????????????????????????????????????????????????? | | ?????????????????????????????????????????????????? | | ?????????????????????????????????????????????????? | | ?????????????????????????????????????????????????? | | ???????????????H?????????????????????????????????? | | ?????????????????????????????????????????????????? | | ?????????????????????????????????????????????????? | | ?????????????????????????????????????????????????? | | ??????????????????????#######????????????????????? | | ?????????????????????? #????????????????????? | | ?????????????????????#"" ????????????????????? | | ?????????????????????#"" #????????????????????? | | ?????????????????????#"T |#????????????????????? | | ?????????????????????#"" #????????????????????? | | ?????????????????????#"" #????????????????????? | | ??????????????###????# = #????????????????????? | | ??????????????+ ????# g@Y #?????????????###+#### | | ??????????????# ???# hk* g#?????????????? | | ??????????????#! ???# k"" #??????????????? | | ??????????????# ???# "" g#???????????????? # | | ??????????????? ??#gg"" #????????????????# # | | ???????????????? ??# #????+#??????????# # | | ??????? #######+####m###### #??????????# # | | ?????? #??????????# # | | ?????? #??????????# | | ?????? % #??????????# | | ??????? #######+#"##############??????????# | | ????????????????#!!%= ## #####?????????# # | | ????????????????# *= ## ??????????# # | | ????????????????# ## ???????????# # | | ????????????????#| "T" ## ????????????# # | | ????????????????# """ #? #?????????????# # | | ???????????????#"##"####### #??????#???????# # | | ???????????????##?# """"" # #???? #???????# # | | ??????????????????# ""T"" # #??? #???????# # | | ??????????????????# =+ ### #???????# # | | ??????????????????# ! # =[%/= #???????# # | | ??????????????????#% [" %*=############## # | | ??????????????????#######"" %[ # | | ?????????????????????##""""#/#####""### # | | ?????????????????????# "#?# # | +----------------------------------------------------+ Best States ------------- Heat Dissipation 45 Energy Generation 23 Energy Capacity 290 Matter Stores 300 Matter Capacity 300 Sight Range 16 Robot Scan Range 14 Terrain Scan Range 16 Terrain Scan Density 10 Armor Coverage 600 Power Shielding 66 Utility Shielding 33 Evasion (%) 40 Recoil Reduction 3 Item Schematics ----------------- Hacking Suite | -9/Materials | Scanalyzed Sensor Array | -9/Materials | Scanalyzed Lgt. Nuclear Core | -9/Materials | Scanalyzed Signal Interpreter | -9/Materials | Scanalyzed Visual Processing Unit | -9/Materials | Scanalyzed Robot Schematics ------------------ None Fabricated ------------ Nothing Alien Tech Used ----------------- None Achievements -------------- Hunted Challenges ------------ None Game ------ Seed VariableAlloyScrap Manual? 0 Play Time 00:54:13 Cumulative 20.8 hours Start 2024.06.29 @ 16:07:21 End 2024.06.29 @ 17:02:04 Sessions 1 Manual Loads 0 Difficulty Rogue Special Mode None Game No. 20 Rogue 20 Adventurer 0 Explorer 0 Win Type - Total 0 Types 0/0/0/0/0/0/0/0/0 Lore% 20 Gallery% 24 Achievement% 19 Wizard Run 0 Options --------- Layout 1 ASCII 0 Keyboard 0 Movement Arrows Keybinds 0 Fullscreen 2 Font 24/Terminus Map View 50x35 Zoom Use 0% Tactical HUD 1 Map Filters NONE Filters NONE Steam 1 RUN: dcaf9d35-8cba-4e27-880b-f7f18498095c